{"text_format":"1","workbook":"xlsx","n_sheets":1,"sheets":["Fremdplatzierung"],"not_rendered":{"charts":0,"images":1,"macros":1,"external_links":0,"defined_names":2,"comments":0,"pivot_tables":0},"unopened":[],"bounds":{"document_bytes":16777216,"sheet_cells":100000,"rows_first":2000,"rows_last":500,"rows_between":2000,"halvings":0,"cell_chars":16384,"cell_head_chars":4096},"cells_cut":0,"cells_raw":0,"read":"whole","date_system":"1900"}

{"sheet":"Fremdplatzierung","index":0,"n_rows":45,"n_cols":11,"rows_kept":45,"cut":false,"hidden":false,"merged":[[0,0,0,3],[4,0,4,3],[6,5,6,7],[32,0,34,3],[2,8,2,10],[3,8,3,10],[44,0,44,3],[38,0,38,3],[42,0,43,3],[39,0,40,3],[35,0,37,3]]}
[{"$f":"CONCATENATE(\"Elternbeitragsberechnung \",I2,)","v":"Elternbeitragsberechnung 0"},null,null,null,null,"Erfassung: (bitte alle Werte hier erfassen)"]
[{"$f":"CONCATENATE(\"Beitragspflichtige Eltern: \",I3)","v":"Beitragspflichtige Eltern: "},null,null,null,null,"1. Elternbeitrag für das Jahr:",null,null,0]
[{"$f":"CONCATENATE(\"Zwecks Beteiligung an den Kindesschutzmassnahmekosten für das Kind: \",I4)","v":"Zwecks Beteiligung an den Kindesschutzmassnahmekosten für das Kind: "},null,null,null,null,"2. Eltern (Name, Vorname, Adresse):"]
[null,null,null,null,null,"3. Kind (Name, Vorname, Geburtsdatum):"]
[{"$f":"I5","v":0},null,null,null,null,"4. Jahr des steuerbaren Einkommens",null,null,0]
[null,null,null,null,null,"5. steuerbares Reineinkommen",null,null,0]
[null,"CHF",null,"CHF",null,"6. Selbständigerwerbende +15%",null,null,0,{"$f":"I6*0.15","v":0},"falls zutreffend"]
[null,null,null,null,null,"7. Aufrechnung Ergänzungsleistungen",null,null,0]
["Steuerbares Reineinkommen ",null,null,{"$f":"I6","v":0},null,"8. Aufrechnung weitere steuerfreie Einnahmen",null,null,0]
["Selbständigerwerbende + 15%",null,null,{"$f":"I7","v":0},null,"9. steuerbares Vermögen",null,null,0]
["Aufrechnung Ergänzungsleistungen zur AHV/IV gem. § 32 Steuergesetz",null,null,{"$f":"I8","v":0},null,"10. begründete ausserordentliche Aufwände",null,null,0]
["Aufrechnung weitere steuerfreie Einnahmen gem. § 32 Steuergesetz",null,null,0,null,"11. nicht für ambulante Massnahmen",null,null,0]
["Steuerbares Vermögen (1/15 von Total CHF)",{"$f":"I10","v":0},null,{"$f":"B13/15","v":0},null,"12. Kinderabzug - Anzahl Kinder",null,null,0]
["Kinderabzug ",null,null,{"$f":"-I13*J15","v":0},null,"13. Einkommensgrenze Grundbeitrag",null,null,0]
["andere begründete ausserordentliche Aufwände",null,null,{"$f":"-I11","v":0},null,null,null,null,null,7000,"je Kind"]
[]
[]
["Anrechenbares Einkommen",null,null,{"$f":"SUM(D9:D17)","v":0}]
[]
["Grundbetrag pro Monat"]
[{"$f":"I14","v":0},null,null,100]
[]
["Zuschlag pro Tag"]
[{"$f":"A18","v":"Anrechenbares Einkommen"},{"$f":"D18","v":0}]
["Abzüglich Grundbetragseinkommen",{"$f":"-A21","v":0}]
["Überschuss : CHF 1'800.00 (CHF 10 je weitere CHF 1800)",{"$f":"SUM(B24:B25)","v":0},null,{"$f":"ROUND((B26/1800),0)*10","v":0}]
[]
["Elternbeitrag pro Monat (Grundbetrag + Zuschlag)",null,null,{"$f":"IF(SUM(D21+D26)<=0,D21-D21,D21+D26)","v":100}]
[]
["Elternbeitrag pro Monat (jeder Monat zählt 30 Tage)",null,null,{"$f":"D28","v":100}]
[]
["Bitte beachten Sie, dass bei Veränderungen der Verhältnisse, der Elternbeitrag neu berechnet werden muss.\nDeshalb sind Sie verpflichtet, die Sozialen Dienste unaufgefordert und unverzüglich insbesondere über folgende\nÄnderungen zu informieren:\n\n• Aufnahme oder Verlust der Arbeit\n• Bezüge aus Renten und Versicherungen\n• Wohnortwechsel\n• Gewinne und Erbschaften\n• Änderung der Haushaltszusammensetzung"]
["Die Eltern_Mutter_Vater (Name, Vorname Mutter/Vater), verpflichten sich, einen monatlichen Elternbeitrag von CHF XXXX für die Dauer der Kindesschutzmassnahme zu entrichten. Die Zahlung erfolgt jeweils am XX (Zahlungsmodalitäten können hier ergänzt werden)."]
[]
[]
["…………………………………………..                                 …………………………………………………………"]
[]
[]
["Ort, Datum                                                                               beitragspflichtiger Kindsvater / Stiefvater"]
["………………………………………….                                 …………...……………………………………………."]
[]
["Ort, Datum                                                                               beitragspflichtige Kindsmutter / Stiefmutter"]
["………………………………………….                                 …………...……………………………………………."]
[]
["Ort, Datum                                                                               Sozialregion"]